fUST/lending_fUST_20250504
["ID","MTS","AMOUNT","RATE_DAILY","PERIOD"]
[359841053,1746366646662,-452.7,0.00038904,15]
[359841055,1746366646672,-400.0,0.00038904,15]
[359841057,1746366646682,-400.0,0.00038904,15]
[359841059,1746366646692,-809.18,0.00038904,15]
[359841061,1746366646702,-400.0,0.00038904,15]
[359841063,1746366646711,-452.7,0.00038904,15]
[359841065,1746366646721,-400.0,0.00038904,15]
[359841067,1746366646730,-809.18,0.00038904,15]
[359841069,1746366646740,-324.83,0.00038904,15]
[359841071,1746366646750,-452.7,0.00038904,15]
[359841073,1746366646760,-400.0,0.00038904,15]
[359841075,1746366646770,-809.18,0.00038904,15]
[359841077,1746366646779,-452.7,0.00038904,15]
[359841079,1746366646790,-809.18,0.00038904,15]
[359841081,1746366646799,-400.0,0.00038904,15]
[359841083,1746366646809,-809.18,0.00038904,15]
[359841085,1746366646819,-400.0,0.00038904,15]
[359841087,1746366646829,-809.18,0.00038904,15]
[359841089,1746366646839,-400.0,0.00038904,15]
[359841090,1746366646849,-400.0,0.00038904,15]
[359841091,1746366646859,-809.18,0.00038904,15]
[359841092,1746366646869,-400.0,0.00038904,15]
[359841093,1746366646878,-809.18,0.00038904,15]
[359841095,1746366646889,-518.623081,0.00038904,15]
[359841097,1746366646898,-400.0,0.00038904,15]
[359841099,1746366646908,-400.0,0.00038904,15]
[359841102,1746366646918,-400.0,0.00038904,15]
[359841104,1746366646927,-502.81468013,0.00038904,15]
[359841106,1746366646936,-400.0,0.00038904,15]
[359841108,1746366646946,-400.0,0.00038904,15]
[359841110,1746366646956,-400.0,0.00038904,15]
[359841112,1746366646965,-400.0,0.00038904,15]
[359841114,1746366646974,-400.0,0.00038904,15]
[359841116,1746366646983,-400.0,0.00038904,15]
[359841118,1746366646993,-400.0,0.00038904,15]
[359841120,1746366647002,-400.0,0.00038904,15]
[359841122,1746366647012,-400.0,0.00038904,15]
[359841124,1746366647022,-400.0,0.00038904,15]
[359841126,1746366647031,-214.49530761,0.00038904,15]
[359841128,1746366647041,-400.0,0.00038904,15]
[359841130,1746366647052,-400.0,0.00038904,15]
[359841132,1746366647061,-400.0,0.00038904,15]
[359841134,1746366647071,-400.0,0.00038904,15]
[359841136,1746366647081,-400.0,0.00038904,15]
[359841138,1746366647091,-403.84,0.00038904,15]
[359841140,1746366647100,-400.0,0.00038904,15]
[359841142,1746366647110,-400.0,0.00038904,15]
[359841144,1746366647123,-400.0,0.00038904,15]
[359841146,1746366647133,-400.0,0.00038904,15]
[359841148,1746366647143,-400.0,0.00038904,15]
[359841150,1746366647153,-400.0,0.00038904,15]
[359841166,1746366647284,-400.0,0.00038904,15]
[359841168,1746366647295,-400.0,0.00038904,15]
[359841170,1746366647305,-400.0,0.00038904,15]
[359841172,1746366647315,-400.0,0.00038904,15]
[359841174,1746366647325,-400.0,0.00038904,15]
[359841176,1746366647334,-400.0,0.00038904,15]
[359841178,1746366647344,-400.0,0.00038904,15]
[359841180,1746366647354,-400.0,0.00038904,15]
[359841183,1746366647363,-400.0,0.00038904,15]
[359841185,1746366647375,-400.0,0.00038904,15]
[359841187,1746366647384,-400.0,0.00038904,15]
[359841189,1746366647394,-389.48,0.00038904,15]
[359841191,1746366647404,-400.0,0.00038904,15]
[359841193,1746366647413,-400.0,0.00038904,15]
[359841195,1746366647423,-400.0,0.00038904,15]
[359841197,1746366647432,-400.0,0.00038904,15]
[359841199,1746366647442,-400.0,0.00038904,15]
[359841201,1746366647451,-400.0,0.00038904,15]
[359841203,1746366647462,-400.0,0.00038904,15]
[359841205,1746366647472,-400.0,0.00038904,15]
[359841207,1746366647482,-400.0,0.00038904,15]
[359841209,1746366647492,-400.0,0.00038904,15]
[359841211,1746366647501,-400.0,0.00038904,15]
[359841213,1746366647511,-400.0,0.00038904,15]
[359841215,1746366647521,-400.0,0.00038904,15]
[359841217,1746366647530,-400.0,0.00038904,15]
[359841219,1746366647540,-400.0,0.00038904,15]
[359841221,1746366647549,-400.0,0.00038904,15]
[359841223,1746366647559,-400.0,0.00038904,15]
[359841225,1746366647569,-400.0,0.00038904,15]
[359841227,1746366647579,-400.0,0.00038904,15]
[359841229,1746366647589,-400.0,0.00038904,15]
[359841231,1746366647599,-400.0,0.00038904,15]
[359841234,1746366647609,-400.0,0.00038904,15]
[359841236,1746366647618,-400.0,0.00038904,15]
[359841238,1746366647628,-400.0,0.00038904,15]
[359841240,1746366647637,-400.0,0.00038904,15]
[359841242,1746366647646,-400.0,0.00038904,15]
[359841244,1746366647656,-400.0,0.00038904,15]
[359841246,1746366647665,-536.94338367,0.00038904,15]
[359841248,1746366647674,-400.0,0.00038904,15]
[359841250,1746366647683,-400.0,0.00038904,15]
[359841252,1746366647693,-400.0,0.00038904,15]
[359841254,1746366647702,-400.0,0.00038904,15]
[359841256,1746366647712,-400.0,0.00038904,15]
[359841258,1746366647722,-400.0,0.00038904,15]
[359841260,1746366647732,-400.0,0.00038904,15]
[359841262,1746366647742,-400.0,0.00038904,15]
[359841264,1746366647751,-400.0,0.00038904,15]
[359841266,1746366647761,-533.67901205,0.00038904,15]
[359841268,1746366647770,-400.0,0.00038904,15]
[359841270,1746366647779,-400.0,0.00038904,15]
[359841272,1746366647789,-400.0,0.00038904,15]
[359841274,1746366647798,-400.0,0.00038904,2]
[359841276,1746366647807,-400.0,0.00038904,15]
[359841278,1746366647817,-400.0,0.00038904,2]
[359841279,1746366647826,-400.0,0.00038904,15]
[359841281,1746366647836,-400.0,0.00038904,2]
[359841283,1746366647845,-232.0,0.00038904,15]
[359841285,1746366647854,-400.0,0.00038904,2]
[359841287,1746366647864,-400.0,0.00038904,2]
[359841289,1746366647873,-400.0,0.00038904,2]
[359841291,1746366647882,-400.0,0.00038904,2]
[359841293,1746366647891,-400.0,0.00038904,2]
[359841295,1746366647901,-400.0,0.00038904,2]
[359841297,1746366647911,-710.86,0.00038904,15]
[359841299,1746366647920,-710.86,0.00038904,15]
[359841301,1746366647930,-710.86,0.00038904,15]
[359841303,1746366647940,-400.0,0.00038904,15]
[359841305,1746366647950,-400.0,0.00038904,15]
[359841307,1746366647959,-710.86,0.00038904,15]
[359841309,1746366647969,-400.0,0.00038904,15]
[359841311,1746366647979,-400.0,0.00038904,15]
[359841313,1746366647989,-710.86,0.00038904,15]
[359841315,1746366647999,-400.0,0.00038904,15]
[359841317,1746366648008,-400.0,0.00038904,15]
[359841320,1746366648018,-710.86,0.00038904,15]
[359841322,1746366648027,-400.0,0.00038904,15]
[359841323,1746366648036,-710.86,0.00038904,15]
[359841326,1746366648050,-400.0,0.00038904,15]
[359841328,1746366648060,-710.86,0.00038904,15]
[359841330,1746366648069,-710.86,0.00038904,15]
[359841332,1746366648079,-710.86,0.00038904,15]
[359841334,1746366648089,-710.86,0.00038904,15]
[359841336,1746366648100,-710.86,0.00038904,15]
[359841338,1746366648109,-400.0,0.00038904,15]
[359841340,1746366648119,-400.0,0.00038904,15]
[359841342,1746366648129,-400.0,0.00038904,15]
[359841344,1746366648138,-400.0,0.00038904,15]
[359841346,1746366648147,-400.0,0.00038904,15]
[359841348,1746366648157,-400.0,0.00038904,15]
[359841350,1746366648166,-400.0,0.00038904,15]
[359841352,1746366648176,-400.0,0.00038904,15]
[359841354,1746366648186,-400.0,0.00038904,15]
[359841356,1746366648196,-400.0,0.00038904,15]
[359841358,1746366648205,-400.0,0.00038904,15]
[359841360,1746366648214,-400.0,0.00038904,15]
[359841362,1746366648223,-400.0,0.00038904,15]
[359841364,1746366648233,-400.0,0.00038904,15]
[359841366,1746366648242,-400.0,0.00038904,15]
[359841368,1746366648251,-400.0,0.00038904,15]
[359841370,1746366648260,-400.0,0.00038904,15]
[359841372,1746366648270,-400.0,0.00038904,15]
[359841374,1746366648279,-400.0,0.00038904,15]
[359841376,1746366648289,-400.0,0.00038904,15]
[359841378,1746366648298,-400.0,0.00038904,15]
[359841380,1746366648307,-478.42,0.00038904,15]
[359841382,1746366648317,-400.0,0.00038904,15]
[359841384,1746366648327,-400.0,0.00038904,15]
[359841386,1746366648336,-400.0,0.00038904,15]
[359841388,1746366648345,-400.0,0.00038904,15]
[359841390,1746366648355,-400.0,0.00038904,15]
[359841392,1746366648365,-400.0,0.00038904,15]
[359841394,1746366648375,-400.0,0.00038904,15]
[359841395,1746366648385,-400.0,0.00038904,15]
[359841396,1746366648394,-300.0,0.00038904,15]
[359841397,1746366648403,-300.0,0.00038904,15]
[359841398,1746366648412,-300.0,0.00038904,15]
[359841399,1746366648421,-299.0,0.00038904,15]
[359841400,1746366648430,-400.0,0.00038904,15]
[359841401,1746366648440,-298.29176433,0.00038904,15]
[359841402,1746366648449,-153.57843841,0.00038904,15]
[359841403,1746366648458,-500.0,0.00038904,15]
[359841404,1746366648467,-400.0,0.00038904,15]
[359841405,1746366648476,-400.0,0.00038904,15]
[359841406,1746366648485,-500.0,0.00038931,15]
[359841407,1746366648494,-500.0,0.00038931,15]
[359841408,1746366648504,-500.0,0.00038931,15]
[359841409,1746366648513,-383.101577,0.00038933,2]
[359841410,1746366648523,-500.0,0.00038959,15]
[359841411,1746366648532,-500.0,0.00038959,15]
[359841412,1746366648541,-500.0,0.00038959,15]
[359841413,1746366648551,-452.7,0.00038972,15]
[359841414,1746366648560,-809.18,0.00038972,15]
[359841415,1746366648570,-400.0,0.00038972,15]
[359841416,1746366648579,-400.0,0.00038972,15]
[359841417,1746366648588,-710.86,0.00038972,15]
[359841418,1746366648598,-400.0,0.00038972,15]
[359841420,1746366648608,-199.44,0.00038972,15]
[359841421,1746366648618,-200.0,0.00038973,5]
[359841422,1746366648627,-500.0,0.00038973,5]
[359841423,1746366648637,-451.00035388,0.00038973,5]
[359841424,1746366648646,-500.0,0.00038973,2]
[359841425,1746366648656,-500.0,0.00038973,5]
[359841426,1746366648666,-502.78096543,0.00038973,5]
[359841427,1746366648676,-500.0,0.00038973,5]
[359841428,1746366648686,-500.0,0.00038973,5]
[359841429,1746366648696,-500.0,0.00038973,5]
[359841430,1746366648705,-500.11595829,0.00038973,5]
[359841431,1746366648715,-500.0,0.00038973,5]
[359841432,1746366648725,-500.0,0.00038973,5]
[359841433,1746366648735,-627.52277675,0.00038973,3]
[359841434,1746366648747,-500.0,0.00038973,5]
[359841435,1746366648757,-500.0,0.00038973,5]
[359841436,1746366648767,-472.5120427,0.00038973,5]
[359841437,1746366648776,-500.0,0.00038973,5]
[359841438,1746366648786,-500.0,0.00038973,5]
[359841439,1746366648797,-500.0,0.00038973,5]
[359841440,1746366648807,-500.0,0.00038973,5]
[359841441,1746366648816,-500.0,0.00038973,5]
[359841442,1746366648825,-500.0,0.00038986,15]
[359841443,1746366648835,-500.0,0.00038986,15]
[359841444,1746366648844,-333.0,0.00038986,15]
[359841445,1746366648854,-656.94,0.00039,7]
[359841446,1746366648864,-557.86,0.00039011,15]
[359841447,1746366648874,-500.0,0.00039014,15]
[359841448,1746366648894,-500.0,0.00039014,15]
[359841449,1746366648904,-500.0,0.00039041,15]
[359841450,1746366648914,-500.0,0.00039041,15]
[359841451,1746366648923,-452.7,0.00039067,15]
[359841452,1746366648933,-809.18,0.00039067,15]
[359841453,1746366648943,-400.0,0.00039067,15]
[359841454,1746366648952,-400.0,0.00039067,15]
[359841455,1746366648962,-710.86,0.00039067,15]
[359841456,1746366648972,-400.0,0.00039067,15]
[359841457,1746366648982,-528.01,0.00039068,15]
[359841458,1746366648992,-400.0,0.00039068,15]
[359841459,1746366649002,-400.0,0.00039068,15]
[359841460,1746366649012,-400.0,0.00039068,15]
[359841461,1746366649022,-400.0,0.00039068,15]
[359841462,1746366649032,-186.75,0.00039068,15]
[359841463,1746366649046,-400.0,0.00039068,2]
[359841464,1746366649056,-500.0,0.00039068,15]
[359841465,1746366649066,-500.0,0.00039068,15]
[359841466,1746366649075,-500.0,0.00039096,15]
[359841467,1746366649087,-500.0,0.00039096,15]
[359841468,1746366649096,-500.0,0.00039123,15]
[359841469,1746366649105,-500.0,0.00039123,15]
[359841470,1746366649115,-500.0,0.00039151,15]
[359841471,1746366649125,-500.0,0.00039151,15]
[359841472,1746366649136,-500.0,0.00039178,15]
[359841473,1746366649146,-500.0,0.00039178,15]
[359841474,1746366649155,-318.0,0.000392,2]
[359841475,1746366649165,-500.0,0.00039205,15]
[359841476,1746366649174,-500.0,0.00039233,15]
[359841477,1746366649184,-500.0,0.0003926,15]
[359841478,1746366649193,-500.0,0.00039288,15]
[359841479,1746366649203,-500.0,0.00039315,15]
[359841480,1746366649212,-561.10147,0.0003932,2]
[359841481,1746366649222,-500.0,0.00039342,15]
[359841482,1746366649231,-500.0,0.0003937,15]
[359841483,1746366649241,-500.0,0.00039397,15]
[359841484,1746366649250,-240.99642421,0.00039425,15]
[359841485,1746366649261,-557.86,0.00039497,15]
[359841486,1746366649271,-528.01,0.00039498,15]
[359841487,1746366649280,-400.0,0.00039498,15]
[359841488,1746366649291,-400.0,0.00039498,15]
[359841489,1746366649301,-400.0,0.00039498,15]
[359841490,1746366649311,-400.0,0.00039498,2]
[359841491,1746366649320,-452.7,0.00039499,15]
[359841492,1746366649330,-809.18,0.00039499,15]
[359841493,1746366649340,-400.0,0.00039499,15]
[359841494,1746366649350,-513.99,0.00039499,15]
[359841495,1746366649360,-710.86,0.00039499,15]
[359841496,1746366649370,-400.0,0.00039499,15]
[359841497,1746366649381,-3000.0,0.000395,20]
[359841498,1746366649390,-160.0,0.00039618,2]
[359841499,1746366649399,-659.98,0.00039634,120]
[359841500,1746366649408,-1923.108146,0.0003966,13]
[359841501,1746366649418,-1000.0,0.0003968,13]
[359841502,1746366649427,-1100.869403,0.0003968,13]
[359841504,1746366649437,-1000.0,0.000397,13]
[359841506,1746366649446,-1000.0,0.000397,13]
[359841508,1746366649456,-160.0,0.000398,60]
[359841510,1746366649465,-172.09816235,0.00039819,2]
[359841511,1746366649474,-659.98,0.00039834,120]
[359841513,1746366649484,-200.0,0.00039846,31]
[359841515,1746366649493,-500.0,0.00039848,5]
[359841517,1746366649502,-500.0,0.00039848,5]
[359841519,1746366649511,-500.0,0.00039848,5]
[359841521,1746366649520,-500.0,0.00039873,5]
[359841523,1746366649530,-557.86,0.00039894,15]
[359841525,1746366649540,-528.01,0.00039895,15]
[359841527,1746366649550,-400.0,0.00039895,15]
[359841529,1746366649560,-400.0,0.00039895,15]
[359841531,1746366649569,-400.0,0.00039895,15]
[359841533,1746366649579,-400.0,0.00039895,2]
[359841535,1746366649589,-452.7,0.00039898,15]
[359841537,1746366649598,-809.18,0.00039898,15]
[359841539,1746366649608,-176.88,0.00039898,15]
[359841541,1746366649618,-710.86,0.00039898,15]
[359841543,1746366649628,-400.0,0.00039898,15]
[359841545,1746366649638,-161.0,0.00039899,120]
[359841547,1746366649648,-528.01,0.00039899,15]
[359841549,1746366649657,-528.01,0.00039899,15]
[359841551,1746366649668,-557.86,0.00039899,15]
[359841553,1746366649678,-557.86,0.00039899,15]
[359841555,1746366649688,-400.0,0.00039899,15]
[359841557,1746366649698,-476.94,0.00039899,15]
[359841559,1746366649709,-199.13,0.00039899,15]
[359841561,1746366649718,-452.7,0.00039899,15]
[359841563,1746366649728,-452.7,0.00039899,15]
[359841565,1746366649738,-400.0,0.00039899,15]
[359841567,1746366649747,-809.18,0.00039899,15]
[359841570,1746366649758,-400.0,0.00039899,15]
[359841571,1746366649767,-809.18,0.00039899,15]
[359841573,1746366649776,-400.0,0.00039899,2]
[359841581,1746366649896,-400.0,0.00039899,2]
[359841582,1746366649906,-710.86,0.00039899,15]
[359841583,1746366649919,-710.86,0.00039899,15]
[359841584,1746366649930,-400.0,0.00039899,15]
[359841585,1746366649940,-400.0,0.00039899,15]
[359841586,1746366649950,-3804.12000001,0.000399,30]
[359841587,1746366649959,-269.63842833,0.000399,30]
[359841589,1746366649969,-22445.61,0.000399,30]
[359841591,1746366649979,-1070.26,0.000399,30]
[359841593,1746366649989,-7544.44,0.000399,30]
[359841595,1746366649998,-160.0,0.000399,7]
[359841597,1746366650008,-1500.0,0.000399,2]
[359841598,1746366650018,-1500.0,0.000399,2]
[359841600,1746366650027,-1500.0,0.000399,2]
[359841602,1746366650036,-1513.35,0.000399,2]
[359841604,1746366650049,-213.73661413,0.000399,41]
[359841606,1746366650059,-557.86,0.00039901,15]
[359841608,1746366650069,-528.01,0.00039902,15]
[359841610,1746366650079,-400.0,0.00039902,15]
[359841612,1746366650089,-400.0,0.00039902,2]
[359841614,1746366650099,-452.7,0.00039911,15]
[359841616,1746366650109,-809.18,0.00039911,15]
[359841618,1746366650120,-710.86,0.00039911,15]
[359841620,1746366650131,-400.0,0.00039911,15]
[359841622,1746366650140,-528.01,0.00039912,15]
[359841624,1746366650150,-400.0,0.00039912,15]
[359841626,1746366650160,-198.1241876,0.00039912,2]
[359841628,1746366650170,-183.652419,0.00039913,14]
[359841630,1746366650180,-557.86,0.00039913,15]
[359841632,1746366650189,-557.86,0.00039916,15]
[359841634,1746366650199,-452.7,0.00039916,15]
[359841636,1746366650208,-452.7,0.00039916,15]
[359841638,1746366650218,-452.7,0.00039916,15]
[359841640,1746366650227,-452.7,0.00039916,15]
[359841642,1746366650237,-809.18,0.00039916,15]
[359841644,1746366650246,-452.86,0.00039916,15]
[359841646,1746366650256,-809.18,0.00039916,15]
[359841648,1746366650265,-809.18,0.00039916,15]
[359841650,1746366650275,-809.18,0.00039916,15]
[359841651,1746366650284,-809.23,0.00039916,15]
[359841653,1746366650294,-710.86,0.00039916,15]
[359841655,1746366650304,-710.86,0.00039916,15]
[359841657,1746366650314,-710.86,0.00039916,15]
[359841659,1746366650324,-710.86,0.00039916,15]
[359841661,1746366650334,-710.89,0.00039916,15]
[359841663,1746366650343,-400.0,0.00039916,15]
[359841665,1746366650353,-400.0,0.00039916,15]
[359841667,1746366650364,-400.0,0.00039916,15]
[359841669,1746366650374,-188.16,0.00039916,15]
[359841671,1746366650384,-528.01,0.00039917,15]
[359841674,1746366650394,-528.01,0.00039917,15]
[359841675,1746366650403,-528.01,0.00039917,15]
[359841677,1746366650413,-528.01,0.00039917,15]
[359841679,1746366650423,-528.01,0.00039917,15]
[359841682,1746366650435,-528.01,0.00039917,15]
[359841683,1746366650444,-528.01,0.00039917,15]
[359841685,1746366650454,-528.21,0.00039917,15]
[359841687,1746366650463,-557.86,0.00039917,15]
[359841689,1746366650473,-557.86,0.00039917,15]
[359841691,1746366650484,-557.86,0.00039917,15]
[359841693,1746366650493,-557.86,0.00039917,15]
[359841695,1746366650502,-558.02,0.00039917,15]
[359841697,1746366650512,-403.83,0.00039917,15]
[359841699,1746366650522,-174.883334,0.00039918,14]
[359841701,1746366650531,-151.0,0.00039918,14]
[359841703,1746366650540,-280.849396,0.00039918,14]
[359841705,1746366650549,-151.0,0.00039918,14]
[359841707,1746366650559,-151.0,0.00039918,2]
[359841709,1746366650568,-151.0,0.00039918,2]
[359841711,1746366650577,-151.0,0.00039918,2]
[359841713,1746366650587,-191.75517,0.00039918,2]
[359841715,1746366650598,-151.0,0.00039919,14]
[359841717,1746366650608,-233.403715,0.00039919,14]
[359841719,1746366650617,-428.07964857,0.00039919,31]
[359841721,1746366650626,-500.0,0.00039919,31]
[359841723,1746366650636,-500.0,0.00039919,31]
[359841725,1746366650645,-280.62493768,0.00039919,31]
[359841727,1746366650654,-437.55250029,0.00039919,31]
[359841729,1746366650664,-151.0,0.00039919,14]
[359841731,1746366650674,-151.0,0.00039919,14]
[359841733,1746366650683,-2319339.7980366,0.00039919,20]
[359841742,1746366650757,-742.17510612,0.00039919,20]
[359841744,1746366650768,-5087.6289897,0.00039919,20]
[359841749,1746366650806,-400.0,0.00038904,15]
[359841751,1746366650815,-400.0,0.00038904,15]
[359841753,1746366650825,-400.0,0.00038904,15]
[359841755,1746366650835,-159.65916257,0.00038904,15]
[359841757,1746366650847,-240.34083743,0.00038904,15]
[359841759,1746366650857,-400.0,0.00038904,15]
[359841761,1746366650866,-211469.28867156,0.00039919,20]
[359841777,1746366651068,-271.0342242,0.00039919,20]
[359841778,1746366651080,-275.16655845,0.00039919,20]
[359841779,1746366651092,-3841.37887498,0.00039919,20]
[359841780,1746366651103,-19066.90041137,0.00039919,20]
[359841781,1746366651115,-1119.3,0.00039919,20]
[359841782,1746366651127,-381.584,0.00039919,20]
[359841783,1746366651138,-29358.19310301,0.00039919,20]
[359841824,1746366905895,-201.01492869,0.00025205,2]
[359841853,1746367548135,-346.19561822,0.00025005,2]
[359841854,1746367553089,-389.2443908,0.00025005,2]
[359841857,1746367596416,-151.0,0.00025005,2]
[359841860,1746367646109,-1006.80809826,0.00024905,2]
[359841861,1746367646131,-113.55999098,0.00025005,2]
[359841862,1746367646154,-250.0,0.00025005,2]
[359841863,1746367646173,-155.91146256,0.00025105,2]
[359841864,1746367646194,-79.12546392,0.00025205,2]
[359841865,1746367646213,-500.0,0.00025205,2]
[359841866,1746367646233,-214.92897942,0.00025205,2]
[359841867,1746367646254,-560.78849708,0.00026848,2]
[359841869,1746367652078,-639.21150292,0.00026848,2]
[359841870,1746367652103,-212.83815793,0.000269,16]
[359841871,1746367652125,-345.648634,0.00027397,2]
[359841872,1746367652144,-164.0,0.00027397,3]
[359841873,1746367652163,-300.0,0.00027999,2]
[359841874,1746367652185,-300.0,0.00027999,2]
[359841875,1746367652205,-4268.85515506,0.00028,2]
[359841891,1746367765095,-1220.6014657,0.00024905,2]
[359841892,1746367765116,-250.0,0.00024905,2]
[359841893,1746367765136,-360.46443608,0.00025005,2]
[359841894,1746367765156,-183.6173637,0.00027869,2]
[359841895,1746367765177,-735.49607768,0.00029159,2]
[359841946,1746367832678,-250.0,0.00024805,2]
[359841949,1746367832688,-200.82209684,0.00024805,2]
[359841951,1746367832697,-258.42658131,0.00030137,2]
[359841953,1746367832707,-400.0,0.00030236,2]
[359841954,1746367832716,-400.0,0.00030236,2]
[359841955,1746367832726,-807.0,0.00030236,2]
[359841957,1746367832736,-400.0,0.00030236,2]
[359841959,1746367832745,-500.0,0.00030236,2]
[359841961,1746367832755,-500.0,0.00030236,2]
[359841963,1746367832764,-462.65793717,0.00030236,2]
[359841965,1746367832774,-500.0,0.00030236,2]
[359841967,1746367832783,-197.195843,0.00030236,2]
[359841969,1746367832792,-500.0,0.00030236,2]
[359841971,1746367832802,-500.0,0.00030236,2]
[359841972,1746367832811,-500.0,0.00030236,2]
[359841975,1746367832821,-500.0,0.00030236,2]
[359841976,1746367832830,-500.0,0.00030236,2]
[359841978,1746367832840,-500.0,0.00030236,2]
[359841980,1746367832849,-544.86820969,0.00030236,2]
[359841982,1746367832864,-500.0,0.00030236,2]
[359841983,1746367832878,-500.0,0.00030236,2]
[359841984,1746367832888,-500.0,0.00030236,2]
[359841985,1746367832897,-500.0,0.00030236,2]
[359841986,1746367832908,-500.0,0.00030236,2]
[359841987,1746367832918,-500.0,0.00030236,2]
[359841988,1746367832927,-1229.41652269,0.00030237,2]
[359841989,1746367832946,-16579.09313537,0.00030237,2]
[359841990,1746367832956,-1768.6626046,0.0003074,2]
[359841991,1746367832966,-160.0,0.00032235,2]
[359841992,1746367832975,-200.0,0.0003258,3]
[359841993,1746367832985,-500.0,0.0003258,3]
[359841994,1746367832994,-367.0,0.0003258,3]
[359841995,1746367833004,-212.8381579,0.000329,27]
[359841996,1746367833014,-151.0,0.00033145,2]
[359841997,1746367833023,-345.648634,0.00033165,2]
[359841998,1746367833033,-435.5,0.00033238,30]
[359841999,1746367833043,-212.8381579,0.00033678,29]
[359842000,1746367833054,-212.8381579,0.00034456,30]
[359842001,1746367833064,-1000.0,0.00035,120]
[359842002,1746367833074,-212.8381579,0.00035233,32]
[359842003,1746367833084,-212.8381579,0.00036011,33]
[359842004,1746367833094,-1806.60367498,0.00036367,2]
[359842005,1746367833103,-556.10657076,0.00036589,2]
[359842006,1746367833113,-212.8381579,0.00036789,35]
[359842007,1746367833123,-212.8381579,0.00037567,37]
[359842008,1746367833133,-95121.63255628,0.000376,10]
[359842021,1746367838584,-75.86699828,0.000376,10]
[359842022,1746367838597,-416.351307,0.000376,10]
[359842023,1746367838609,-1806.41131233,0.000376,10]
[359842024,1746367838620,-1614.83479386,0.000376,10]
[359842026,1746367838631,-4063.69772856,0.000376,10]
[359842029,1746367838643,-708.43795877,0.000376,10]
[359842031,1746367838655,-813.62704925,0.000376,10]
[359842082,1746367840805,-1280.21855164,0.000376,10]
[359842090,1746367840864,-11202.5326794,0.000376,10]
[359842092,1746367840876,-994.5,0.000376,10]
[359842384,1746367843574,-1292.00093144,0.000376,10]
[359842396,1746367843755,-5126.50363676,0.000376,10]
[359842707,1746367846707,-123261.85679843,0.000376,10]
[359842710,1746367846717,-150.0,0.000378,2]
[359842713,1746367846728,-384.7488714,0.00037922,4]
[359842716,1746367846738,-212.8381579,0.00038344,38]
[359842717,1746367846747,-151.92497631,0.00038804,2]
[359842719,1746367846757,-1134.35433387,0.00038894,3]
[359842943,1746368078551,-155.91146257,0.000247,2]
[359842964,1746368665557,-204.36559014,0.00024697,2]
[359842968,1746368736157,-61.76993255,0.00024697,2]
[359842969,1746368736181,-212.37159969,0.00024797,2]
[359842970,1746368745088,-87.62840031,0.00024797,2]
[359842971,1746368745110,-137.95427009,0.00024798,2]
[359842973,1746368772497,-152.0,0.000247,2]